fUST/lending_fUST_20260113
["ID","MTS","AMOUNT","RATE_DAILY","PERIOD"]
[401498884,1768273838388,-500.0,0.00011632,2]
[401498885,1768273838397,-500.0,0.00011632,2]
[401498886,1768273838406,-500.0,0.00011632,2]
[401498887,1768273838416,-500.0,0.00011632,2]
[401498888,1768273838427,-500.0,0.00011632,2]
[401498889,1768273838437,-500.0,0.00011632,2]
[401498890,1768273838447,-500.0,0.00011632,2]
[401498891,1768273838457,-500.0,0.00011632,2]
[401498892,1768273838467,-500.0,0.00011632,2]
[401498893,1768273838477,-500.0,0.00011632,2]
[401498894,1768273838487,-500.0,0.00011632,2]
[401498895,1768273838497,-500.0,0.00011632,2]
[401498896,1768273838506,-500.0,0.00011632,2]
[401498897,1768273838516,-500.0,0.00011632,2]
[401498898,1768273838526,-500.0,0.00011632,2]
[401498899,1768273838536,-500.0,0.00011632,2]
[401498900,1768273838548,-500.0,0.00011632,2]
[401498901,1768273838563,-500.0,0.00011632,2]
[401498902,1768273838578,-500.0,0.00011632,2]
[401498903,1768273838594,-500.0,0.00011632,2]
[401498904,1768273838608,-500.0,0.00011632,2]
[401498905,1768273838619,-500.0,0.00011632,2]
[401498906,1768273838634,-500.0,0.00011632,2]
[401498907,1768273838649,-500.0,0.00011632,2]
[401498908,1768273838662,-500.0,0.00011632,2]
[401498909,1768273838675,-500.0,0.00011632,2]
[401498910,1768273838688,-500.0,0.00011632,2]
[401498911,1768273838701,-500.0,0.00011632,2]
[401498912,1768273838713,-500.0,0.00011632,2]
[401498913,1768273838727,-500.0,0.00011632,2]
[401498914,1768273838741,-500.0,0.00011632,2]
[401498915,1768273838753,-500.0,0.00011632,2]
[401498916,1768273838765,-500.0,0.00011632,2]
[401498917,1768273838777,-500.0,0.00011632,2]
[401498918,1768273838790,-500.0,0.00011632,2]
[401498919,1768273838801,-500.0,0.00011632,2]
[401498920,1768273838813,-500.0,0.00011632,2]
[401498921,1768273838826,-500.0,0.00011632,2]
[401498922,1768273838839,-500.0,0.00011632,2]
[401498923,1768273838851,-500.0,0.00011632,2]
[401498924,1768273838863,-500.0,0.00011632,2]
[401498925,1768273838874,-500.0,0.00011632,2]
[401498926,1768273838884,-500.0,0.00011632,2]
[401498927,1768273838896,-500.0,0.00011632,2]
[401498928,1768273838907,-500.0,0.00011632,2]
[401498929,1768273838919,-500.0,0.00011632,2]
[401498930,1768273838932,-500.0,0.00011632,2]
[401498931,1768273838946,-500.0,0.00011632,2]
[401498932,1768273838959,-500.0,0.00011632,2]
[401498933,1768273838972,-500.0,0.00011632,2]
[401498934,1768273838985,-500.0,0.00011632,2]
[401498935,1768273838999,-500.0,0.00011632,2]
[401498936,1768273839012,-500.0,0.00011632,2]
[401498937,1768273839026,-500.0,0.00011632,2]
[401498938,1768273839038,-500.0,0.00011632,2]
[401498939,1768273839049,-500.0,0.00011632,2]
[401498940,1768273839060,-500.0,0.00011632,2]
[401498941,1768273839071,-500.0,0.00011632,2]
[401498942,1768273839084,-500.0,0.00011632,2]
[401498943,1768273839098,-210.016431,0.00011632,2]
[401498944,1768273839112,-153.8261844,0.00011632,2]
[401498945,1768273839126,-500.0,0.00011632,2]
[401498946,1768273839137,-500.0,0.00011632,2]
[401498947,1768273839149,-500.0,0.00011632,2]
[401498948,1768273839160,-500.0,0.00011632,2]
[401498949,1768273839173,-500.0,0.00011632,2]
[401498950,1768273839186,-500.0,0.00011632,2]
[401498951,1768273839197,-500.0,0.00011632,2]
[401498952,1768273839208,-500.0,0.00011632,2]
[401498953,1768273839219,-500.0,0.00011632,2]
[401498954,1768273839231,-500.0,0.00011632,2]
[401498955,1768273839242,-500.0,0.00011632,2]
[401498956,1768273839254,-500.0,0.00011632,2]
[401498957,1768273839265,-500.0,0.00011632,2]
[401498958,1768273839276,-500.0,0.00011632,2]
[401498959,1768273839287,-516.63032934,0.00011632,2]
[401498960,1768273839299,-500.0,0.00011632,2]
[401498961,1768273839310,-500.0,0.00011632,2]
[401498962,1768273839321,-500.0,0.00011632,2]
[401498963,1768273839333,-250.0,0.00011632,2]
[401498964,1768273839347,-500.0,0.00011632,2]
[401498965,1768273839358,-500.0,0.00011632,2]
[401498966,1768273839370,-500.0,0.00011632,2]
[401498967,1768273839382,-475.07646599,0.00011632,2]
[401498968,1768273839393,-500.0,0.00011632,2]
[401498969,1768273839404,-500.0,0.00011632,2]
[401498970,1768273839415,-500.0,0.00011632,2]
[401498971,1768273839426,-500.0,0.00011632,2]
[401498972,1768273839438,-500.0,0.00011632,2]
[401498973,1768273839450,-500.0,0.00011632,2]
[401498974,1768273839463,-500.0,0.00011632,2]
[401498975,1768273839479,-500.0,0.00011632,2]
[401498976,1768273839492,-500.0,0.00011632,2]
[401498977,1768273839504,-500.0,0.00011632,2]
[401498978,1768273839516,-500.0,0.00011632,2]
[401498979,1768273839529,-500.0,0.00011632,2]
[401498980,1768273839541,-500.0,0.00011632,2]
[401498981,1768273839552,-500.0,0.00011632,2]
[401498982,1768273839564,-500.0,0.00011632,2]
[401498983,1768273839576,-250.0,0.00011632,2]
[401498984,1768273839591,-250.0,0.00011632,2]
[401498985,1768273839602,-250.0,0.00011632,2]
[401498986,1768273839614,-250.0,0.00011632,2]
[401498987,1768273839626,-500.0,0.00011632,2]
[401498988,1768273839639,-215.14682625,0.00011634,2]
[401498990,1768273839650,-440.94359263,0.00011636,2]
[401498992,1768273839661,-500.0,0.00011636,2]
[401498995,1768273839673,-500.0,0.00011636,2]
[401498997,1768273839683,-500.0,0.00011636,2]
[401498999,1768273839694,-500.0,0.00011636,2]
[401499001,1768273839705,-500.0,0.00011636,2]
[401499003,1768273839716,-611.01028287,0.00011636,2]
[401499005,1768273839727,-500.0,0.00011636,2]
[401499007,1768273839737,-500.0,0.00011636,2]
[401499009,1768273839748,-500.0,0.00011636,2]
[401499012,1768273839759,-500.0,0.00011636,2]
[401499014,1768273839770,-500.0,0.00011636,2]
[401499016,1768273839781,-2650.97998544,0.00011673,2]
[401499018,1768273839792,-513.12655738,0.00011773,2]
[401499020,1768273839803,-500.0,0.00011773,2]
[401499023,1768273839814,-300.0,0.00011869,2]
[401499025,1768273839826,-300.0,0.00011869,2]
[401499027,1768273839837,-300.0,0.00011869,2]
[401499029,1768273839848,-300.0,0.00011869,2]
[401499047,1768273839993,-300.0,0.00011869,2]
[401499049,1768273840008,-300.0,0.00011869,2]
[401499051,1768273840017,-300.0,0.00011869,2]
[401499053,1768273840027,-300.0,0.00011869,2]
[401499055,1768273840036,-300.0,0.00011869,2]
[401499057,1768273840046,-300.0,0.00011869,2]
[401499059,1768273840055,-300.0,0.00011869,2]
[401499061,1768273840064,-300.0,0.00011869,2]
[401499063,1768273840074,-300.0,0.00011869,2]
[401499065,1768273840083,-300.0,0.00011869,2]
[401499067,1768273840092,-300.0,0.00011869,2]
[401499069,1768273840101,-600.0,0.00011869,2]
[401499071,1768273840110,-543.68980212,0.0001191,2]
[401499073,1768273840119,-153.70982773,0.0001191,2]
[401499075,1768273840128,-155.79052665,0.00012047,2]
[401499077,1768273840137,-500.0,0.00012047,2]
[401499079,1768273840147,-500.0,0.00012047,2]
[401499081,1768273840156,-500.0,0.00012184,2]
[401499083,1768273840165,-500.0,0.00012184,2]
[401499085,1768273840174,-263.89076576,0.00012184,2]
[401499087,1768273840184,-165.33881046,0.00012321,2]
[401499089,1768273840193,-462.2385433,0.00012321,2]
[401499091,1768273840204,-151.92792732,0.00012321,2]
[401499093,1768273840213,-151.83334327,0.00012321,2]
[401499095,1768273840223,-327.49391201,0.00012329,2]
[401499097,1768273840232,-702.98351153,0.0001234,2]
[401499100,1768273840242,-151.27013683,0.00012458,2]
[401499101,1768273840252,-216.04463808,0.00012732,2]
[401499103,1768273840261,-152.47392914,0.00012732,2]
[401499106,1768273840270,-231.4642444,0.00012732,2]
[401499108,1768273840280,-420.0,0.00012737,2]
[401499109,1768273840289,-302.0,0.00012738,2]
[401499112,1768273840299,-1680.0,0.00012758,2]
[401499114,1768273840310,-6030.78482045,0.000129,2]
[401499115,1768273840318,-7145.02897959,0.00013,2]
[401499117,1768273840328,-720.0,0.00013056,2]
[401499119,1768273840336,-500.0,0.00013273,2]
[401499121,1768273840346,-500.26663269,0.00013273,2]
[401499123,1768273840355,-500.0,0.00013273,2]
[401499125,1768273840364,-500.0,0.00013273,2]
[401499127,1768273840373,-500.0,0.00013273,2]
[401499129,1768273840382,-500.0,0.00013273,2]
[401499131,1768273840391,-500.0,0.00013273,2]
[401499133,1768273840400,-500.0,0.00013273,2]
[401499136,1768273840410,-500.0,0.00013273,2]
[401499138,1768273840420,-500.0,0.00013273,2]
[401499140,1768273840429,-500.0,0.00013273,2]
[401499142,1768273840439,-500.0,0.00013273,2]
[401499144,1768273840448,-500.0,0.00013273,2]
[401499146,1768273840457,-500.0,0.00013273,2]
[401499148,1768273840467,-500.35980856,0.00013273,2]
[401499150,1768273840475,-500.0,0.00013273,2]
[401499151,1768273840484,-500.0,0.00013273,2]
[401499153,1768273840493,-500.0,0.00013273,2]
[401499155,1768273840502,-500.0,0.00013273,2]
[401499157,1768273840511,-500.0,0.00013273,2]
[401499159,1768273840520,-500.0,0.00013273,2]
[401499161,1768273840529,-500.0,0.00013273,2]
[401499163,1768273840539,-500.0,0.00013273,2]
[401499165,1768273840548,-500.0,0.00013273,2]
[401499167,1768273840558,-500.0,0.00013273,2]
[401499169,1768273840570,-500.0,0.00013273,2]
[401499171,1768273840580,-500.0,0.00013273,2]
[401499173,1768273840590,-500.0,0.00013273,2]
[401499176,1768273840600,-500.0,0.00013273,2]
[401499178,1768273840610,-500.47876979,0.00013273,2]
[401499180,1768273840619,-500.0,0.00013273,2]
[401499182,1768273840629,-588.05171808,0.00013273,2]
[401499184,1768273840638,-500.0,0.00013273,2]
[401499185,1768273840647,-500.0,0.00013273,2]
[401499188,1768273840657,-401.02939907,0.00013273,2]
[401499190,1768273840666,-500.0,0.00013273,2]
[401499191,1768273840675,-500.0,0.00013273,2]
[401499194,1768273840684,-500.0,0.00013273,2]
[401499196,1768273840693,-500.0,0.00013273,2]
[401499198,1768273840702,-500.0,0.00013273,2]
[401499199,1768273840711,-500.0,0.00013273,2]
[401499201,1768273840720,-500.0,0.00013273,2]
[401499203,1768273840729,-500.0,0.00013273,2]
[401499204,1768273840738,-500.0,0.00013273,2]
[401499205,1768273840747,-380.72949525,0.00013501,2]
[401499206,1768273840756,-300.0,0.00013673,2]
[401499207,1768273840766,-500.0,0.00013698,2]
[401499208,1768273840775,-500.0,0.00013698,2]
[401499209,1768273840784,-500.0,0.00013698,2]
[401499210,1768273840793,-500.0,0.00013698,2]
[401499211,1768273840803,-500.0,0.00013698,2]
[401499212,1768273840813,-500.0,0.00013698,2]
[401499213,1768273840822,-500.0,0.00013698,2]
[401499214,1768273840831,-500.0,0.00013698,2]
[401499215,1768273840840,-500.0,0.00013698,2]
[401499216,1768273840850,-500.0,0.00013698,2]
[401499217,1768273840859,-500.0,0.00013698,2]
[401499218,1768273840868,-500.0,0.00013698,2]
[401499219,1768273840878,-500.0,0.00013698,2]
[401499220,1768273840887,-500.0,0.00013698,2]
[401499221,1768273840896,-500.0,0.00013698,2]
[401499222,1768273840906,-505.24717796,0.00013698,2]
[401499223,1768273840915,-1000.0,0.00013699,2]
[401499224,1768273840924,-58524.677582,0.00013699,2]
[401499225,1768273840933,-253.00078236,0.00013699,2]
[401499226,1768273840943,-500.0,0.00013699,2]
[401499227,1768273840952,-500.0,0.00013699,2]
[401499228,1768273840961,-500.0,0.00013699,2]
[401499229,1768273840970,-500.74793722,0.00013699,2]
[401499230,1768273840979,-500.0,0.00013699,2]
[401499231,1768273840988,-610.91637181,0.00013699,2]
[401499232,1768273840997,-500.32741259,0.00013699,2]
[401499233,1768273841006,-411.20049965,0.00013699,2]
[401499234,1768273841015,-500.0,0.00013699,2]
[401499235,1768273841025,-500.27924126,0.00013699,2]
[401499237,1768273841033,-500.0,0.00013699,2]
[401499239,1768273841042,-500.0,0.00013699,2]
[401499241,1768273841052,-500.0,0.00013699,2]
[401499243,1768273841061,-160.71798276,0.00013699,2]
[401499245,1768273841071,-500.0,0.00013699,2]
[401499247,1768273841080,-500.0,0.00013699,2]
[401499249,1768273841090,-500.0,0.00013699,2]
[401499251,1768273841100,-434.45562234,0.00013699,2]
[401499253,1768273841109,-500.0,0.00013699,2]
[401499255,1768273841118,-500.0,0.00013699,2]
[401499257,1768273841127,-500.0,0.00013699,2]
[401499259,1768273841136,-500.0,0.00013699,2]
[401499261,1768273841145,-500.0,0.00013699,2]
[401499263,1768273841154,-500.0,0.00013699,2]
[401499265,1768273841163,-227.1525335,0.00013699,2]
[401499267,1768273841172,-502.80003889,0.00013699,2]
[401499269,1768273841181,-500.0,0.00013699,2]
[401499271,1768273841190,-500.0,0.00013699,2]
[401499273,1768273841199,-500.0,0.00013699,2]
[401499275,1768273841208,-500.33229586,0.00013699,2]
[401499277,1768273841217,-461.30308829,0.00013699,2]
[401499279,1768273841226,-500.0,0.00013699,2]
[401499281,1768273841235,-500.26011474,0.00013699,2]
[401499283,1768273841244,-500.0,0.00013699,2]
[401499285,1768273841253,-500.0,0.00013699,2]
[401499287,1768273841262,-500.0,0.00013699,2]
[401499289,1768273841271,-500.0,0.00013699,2]
[401499291,1768273841280,-500.0,0.00013699,2]
[401499293,1768273841289,-500.0,0.00013699,2]
[401499295,1768273841298,-500.0,0.00013699,2]
[401499298,1768273841308,-500.0,0.00013699,2]
[401499299,1768273841318,-500.0,0.00013699,2]
[401499301,1768273841327,-298.89998035,0.00013699,2]
[401499304,1768273841337,-500.0,0.00013699,2]
[401499305,1768273841346,-500.0,0.00013699,2]
[401499307,1768273841355,-500.0,0.00013699,2]
[401499309,1768273841365,-500.0,0.00013699,2]
[401499311,1768273841374,-612.31425268,0.00013699,2]
[401499313,1768273841383,-500.0,0.00013699,2]
[401499315,1768273841392,-500.0,0.00013699,2]
[401499317,1768273841402,-500.0,0.00013699,2]
[401499320,1768273841411,-313.26668117,0.00013699,2]
[401499322,1768273841421,-500.0,0.00013699,2]
[401499324,1768273841432,-367.67596865,0.00013699,2]
[401499325,1768273841441,-500.0,0.00013699,2]
[401499328,1768273841451,-500.0,0.00013699,2]
[401499330,1768273841460,-500.0,0.00013699,2]
[401499331,1768273841469,-500.0,0.00013699,2]
[401499334,1768273841479,-500.53205466,0.00013699,2]
[401499336,1768273841488,-500.0,0.00013699,2]
[401499338,1768273841498,-500.0,0.00013699,2]
[401499340,1768273841507,-501.77596466,0.00013699,2]
[401499342,1768273841516,-296.2401009,0.00013699,2]
[401499344,1768273841526,-500.0,0.00013699,2]
[401499346,1768273841535,-500.0,0.00013699,2]
[401499348,1768273841544,-500.0,0.00013699,2]
[401499350,1768273841554,-500.0,0.00013699,2]
[401499352,1768273841563,-500.0,0.00013699,2]
[401499353,1768273841573,-500.0,0.00013699,2]
[401499356,1768273841582,-500.0,0.00013699,2]
[401499358,1768273841596,-500.0,0.00013699,2]
[401499360,1768273841606,-500.0,0.00013699,2]
[401499362,1768273841616,-500.0,0.00013699,2]
[401499363,1768273841625,-500.0,0.00013699,2]
[401499366,1768273841636,-500.0,0.00013699,2]
[401499367,1768273841645,-500.0,0.00013699,2]
[401499370,1768273841655,-500.0,0.00013699,2]
[401499372,1768273841665,-442.19105582,0.00013699,2]
[401499373,1768273841674,-159.67447117,0.00013699,2]
[401499376,1768273841684,-500.0,0.00013699,2]
[401499377,1768273841693,-500.0,0.00013699,2]
[401499379,1768273841702,-201.72675896,0.00013699,2]
[401499381,1768273841711,-1000.0,0.00013821,2]
[401499383,1768273841721,-1000.0,0.00013821,2]
[401499385,1768273841730,-1000.0,0.00013821,2]
[401499387,1768273841739,-1000.0,0.00013821,2]
[401499389,1768273841749,-1000.0,0.00013821,2]
[401499391,1768273841758,-1000.0,0.00013821,2]
[401499393,1768273841767,-1000.65920252,0.00013821,2]
[401499395,1768273841776,-1000.0,0.00013821,2]
[401499397,1768273841786,-1000.0,0.00013821,2]
[401499399,1768273841795,-1000.0,0.00013821,2]
[401499401,1768273841803,-1000.0,0.00013821,2]
[401499403,1768273841812,-1000.0,0.00013821,2]
[401499405,1768273841821,-799.1982595,0.00013821,2]
[401499407,1768273841830,-303.88205907,0.00013821,2]
[401499409,1768273841839,-1000.0,0.00013821,2]
[401499411,1768273841848,-1000.0,0.00013821,2]
[401499413,1768273841859,-1000.0,0.00013821,2]
[401499415,1768273841867,-1000.0,0.00013821,2]
[401499417,1768273841877,-1000.0,0.00013821,2]
[401499419,1768273841886,-1000.0,0.00013821,2]
[401499421,1768273841895,-1114.62780634,0.00013821,2]
[401499423,1768273841904,-1000.0,0.00013821,2]
[401499425,1768273841913,-1000.0,0.00013821,2]
[401499427,1768273841922,-1000.0,0.00013821,2]
[401499429,1768273841932,-290.80732737,0.00013821,2]
[401499431,1768273841941,-958.892719,0.00013821,2]
[401499433,1768273841950,-1000.0,0.00013821,2]
[401499435,1768273841960,-1000.0,0.00013821,2]
[401499437,1768273841969,-1000.0,0.00013821,2]
[401499439,1768273841978,-1000.0,0.00013821,2]
[401499441,1768273841988,-1001.09633075,0.00013821,2]
[401499443,1768273841997,-1000.0,0.00013821,2]
[401499445,1768273842020,-1000.0,0.00013821,2]
[401499447,1768273842030,-1000.0,0.00013821,2]
[401499449,1768273842041,-1000.0,0.00013821,2]
[401499450,1768273842055,-1000.0,0.00013821,2]
[401499452,1768273842065,-1000.0,0.00013821,2]
[401499454,1768273842073,-1000.0,0.00013821,2]
[401499456,1768273842082,-1000.0,0.00013821,2]
[401499458,1768273842091,-294.27582937,0.00013973,2]
[401499460,1768273842101,-587.0,0.00013988,2]
[401499462,1768273842110,-500.0,0.00014,2]
[401499464,1768273842120,-250.0,0.00014029,2]
[401499466,1768273842128,-1314.0,0.00014034,2]
[401499468,1768273842138,-600.0,0.00014221,2]
[401499470,1768273842148,-1000.0,0.00014247,2]
[401499472,1768273842157,-1000.0,0.00014247,2]
[401499474,1768273842167,-1000.46611267,0.00014247,2]
[401499476,1768273842176,-1081.71283585,0.00014247,2]
[401499478,1768273842186,-1000.0,0.00014247,2]
[401499480,1768273842195,-1000.0,0.00014247,2]
[401499482,1768273842205,-1000.0,0.00014247,2]
[401499484,1768273842214,-1000.0,0.00014247,2]
[401499486,1768273842223,-500.83741654,0.00014247,2]
[401499488,1768273842232,-1000.49621073,0.00014247,2]
[401499490,1768273842241,-876.1803398,0.00014247,2]
[401499492,1768273842251,-1000.0,0.00014247,2]
[401499494,1768273842260,-250.18055217,0.00014247,2]
[401499496,1768273842270,-1000.0,0.00014247,2]
[401499498,1768273842279,-1000.0,0.00014247,2]
[401499500,1768273842288,-1000.0,0.00014247,2]
[401499502,1768273842297,-1000.27165154,0.00014247,2]
[401499504,1768273842306,-853.4021361,0.00014247,2]
[401499506,1768273842316,-1000.0,0.00014247,2]
[401499508,1768273842325,-1001.25659261,0.00014247,2]
[401499510,1768273842333,-1000.0,0.00014247,2]
[401499511,1768273842343,-276.84131836,0.00014247,2]
[401499513,1768273842353,-1000.0,0.00014247,2]
[401499516,1768273842363,-1000.0,0.00014247,2]
[401499519,1768273842372,-1000.92415613,0.00014247,2]
[401499521,1768273842381,-1000.90817033,0.00014247,2]
[401499523,1768273842390,-1018.46469469,0.00014247,2]
[401499525,1768273842400,-1003.11856965,0.00014247,2]
[401499527,1768273842410,-1000.0,0.00014247,2]
[401499529,1768273842419,-1000.0,0.00014247,2]
[401499531,1768273842428,-1000.0,0.00014247,2]
[401499533,1768273842437,-1000.0,0.00014247,2]
[401499535,1768273842447,-1014.96531126,0.00014247,2]
[401499537,1768273842456,-1000.0,0.00014247,2]
[401499548,1768273842466,-1002.91382206,0.00014247,2]
[401499550,1768273842565,-501.93084726,0.00014247,2]
[401499552,1768273842575,-1000.0,0.00014247,2]
[401499554,1768273842584,-1000.92768077,0.00014247,2]
[401499556,1768273842596,-1000.0,0.00014247,2]
[401499558,1768273842607,-1000.0,0.00014247,2]
[401499561,1768273842616,-1000.0,0.00014247,2]
[401499562,1768273842626,-1000.0,0.00014247,2]
[401499565,1768273842636,-1000.0,0.00014247,2]
[401499567,1768273842645,-1000.0,0.00014247,2]
[401499569,1768273842655,-1000.0,0.00014247,2]
[401499571,1768273842666,-1000.0,0.00014247,2]
[401499572,1768273842676,-1000.0,0.00014247,2]
[401499573,1768273842685,-1000.0,0.00014247,2]
[401499575,1768273842695,-1000.0,0.00014247,2]
[401499577,1768273842704,-1000.0,0.00014247,2]
[401499579,1768273842713,-1000.0,0.00014247,2]
[401499581,1768273842722,-1000.0,0.00014247,2]
[401499583,1768273842732,-1000.0,0.00014247,2]
[401499585,1768273842741,-1000.0,0.00014247,2]
[401499587,1768273842750,-1000.0,0.00014247,2]
[401499589,1768273842759,-1000.0,0.00014247,2]
[401499591,1768273842769,-1000.0,0.00014247,2]
[401499593,1768273842778,-1006.57632602,0.00014247,2]
[401499595,1768273842787,-647.12625165,0.00014247,2]
[401499597,1768273842797,-1138.93332582,0.00014247,2]
[401499599,1768273842806,-346.38117913,0.00014247,2]
[401499601,1768273842816,-10000.0,0.00014268,2]
[401499603,1768273842826,-864.0,0.00014361,2]
[401499605,1768273842835,-402.67173602,0.00014368,2]
[401499607,1768273842845,-1486.32296382,0.00014368,2]
[401499609,1768273842854,-1177.20505665,0.00014368,2]
[401499611,1768273842863,-1500.0,0.00014368,2]
[401499612,1768273842874,-1500.0,0.00014368,2]
[401499614,1768273842884,-1604.29070362,0.00014368,2]
[401499616,1768273842894,-501.53674303,0.00014368,2]
[401499618,1768273842904,-504.59320272,0.00014368,2]
[401499620,1768273842913,-1121.35319303,0.00014368,2]
[401499622,1768273842923,-501.24947026,0.00014368,2]
[401499624,1768273842932,-1500.0,0.00014368,2]
[401499626,1768273842942,-1500.0,0.00014368,2]
[401499628,1768273842951,-764.84363887,0.00014368,2]
[401499630,1768273842961,-1500.0,0.00014368,2]
[401499632,1768273842970,-1001.10373896,0.00014368,2]
[401499634,1768273842979,-1501.96202407,0.00014368,2]
[401499636,1768273842988,-1500.0,0.00014368,2]
[401499638,1768273842997,-1500.0,0.00014368,2]
[401499640,1768273843006,-1500.0,0.00014368,2]
[401499642,1768273843016,-1500.0,0.00014368,2]
[401499644,1768273843025,-1500.0,0.00014368,2]
[401499646,1768273843034,-424.06874761,0.00014368,2]
[401499648,1768273843043,-1500.0,0.00014368,2]
[401499650,1768273843052,-1500.0,0.00014368,2]
[401499652,1768273843062,-1500.0,0.00014368,2]
[401499654,1768273843071,-1500.0,0.00014368,2]
[401499656,1768273843081,-1499.37106653,0.00014368,2]
[401499658,1768273843090,-1500.0,0.00014368,2]
[401499660,1768273843099,-1503.82096897,0.00014368,2]
[401499662,1768273843108,-1500.0,0.00014368,2]
[401499664,1768273843118,-1001.124693,0.00014368,2]
[401499666,1768273843127,-1500.0,0.00014368,2]
[401499668,1768273843136,-500.0,0.00014483,2]
[401499671,1768273843146,-500.0,0.00014483,2]
[401499674,1768273843155,-500.0,0.00014483,2]
[401499677,1768273843165,-500.0,0.00014483,2]
[401499680,1768273843174,-500.0,0.00014483,2]
[401499683,1768273843184,-500.0,0.00014483,2]
[401499688,1768273843193,-500.0,0.00014483,2]
[401499691,1768273843202,-500.0,0.00014483,2]
[401499694,1768273843211,-500.0,0.00014483,2]
[401499697,1768273843221,-500.0,0.00014483,2]
[401499700,1768273843230,-500.0,0.00014483,2]
[401499703,1768273843240,-500.0,0.00014483,2]
[401499706,1768273843249,-373.37500189,0.00014483,2]
[401499709,1768273843259,-5000.0,0.0001451,2]
[401499712,1768273843269,-100000.0,0.0001459,2]
[401499715,1768273843278,-900.0,0.00014768,2]
[401499718,1768273843288,-575.12204215,0.00014795,2]
[401499721,1768273843297,-159.06616875,0.00014795,2]
[401499724,1768273843307,-1500.0,0.00014795,2]
[401499727,1768273843317,-1500.0,0.00014795,2]
[401499730,1768273843326,-181.44158321,0.00014795,2]
[401499733,1768273843335,-1000.0,0.00014795,2]
[401499736,1768273843344,-501.12760759,0.00014795,2]
[401499739,1768273843354,-1500.0,0.00014795,2]
[401499742,1768273843362,-1501.00555591,0.00014795,2]
[401499744,1768273843371,-1501.38493876,0.00014795,2]
[401499747,1768273843381,-500.72224466,0.00014795,2]
[401499751,1768273843392,-1000.76370703,0.00014795,2]
[401499753,1768273843402,-1500.0,0.00014795,2]
[401499756,1768273843411,-500.76361488,0.00014795,2]
[401499760,1768273843421,-1122.15758895,0.00014795,2]
[401499762,1768273843430,-675.8504307,0.00014795,2]
[401499765,1768273843439,-1500.0,0.00014795,2]
[401499768,1768273843448,-1500.0,0.00014795,2]
[401499771,1768273843458,-1500.0,0.00014795,2]
[401499775,1768273843468,-530.28509529,0.00014795,2]
[401499777,1768273843476,-1500.0,0.00014795,2]
[401499779,1768273843488,-1500.0,0.00014795,2]
[401499781,1768273843497,-1501.40641457,0.00014795,2]
[401499783,1768273843506,-1500.89243734,0.00014795,2]
[401499785,1768273843515,-1500.0,0.00014795,2]
[401499787,1768273843524,-1507.04649373,0.00014795,2]
[401499789,1768273843532,-1501.33228537,0.00014795,2]
[401499791,1768273843542,-1001.171917,0.00014795,2]
[401499793,1768273843551,-500.93199732,0.00014795,2]
[401499795,1768273843561,-1501.07329745,0.00014795,2]
[401499797,1768273843571,-1501.63615745,0.00014795,2]
[401499799,1768273843580,-1500.98173226,0.00014795,2]
[401499801,1768273843590,-711.54421666,0.00014795,2]
[401499803,1768273843599,-1501.37309074,0.00014795,2]
[401499805,1768273843609,-1510.88603555,0.00014795,2]
[401499807,1768273843618,-1002.6632099,0.00014795,2]
[401499809,1768273843627,-1500.0,0.00014795,2]